bitfinex/quotes_SOLUSD_20240816
["timestamp","ask_amount","ask_price","bid_price","bid_amount"]
[1723766645376,6.9998,142.86,142.84,0.37647]
[1723766645569,7.0014,142.83,142.79,0.12549]
[1723766645759,26.47,142.82,142.79,0.25098]
[1723766645965,33.4718,142.82,142.79,0.25098]
[1723766646273,33.4718,142.82,142.8,0.12549]
[1723766646472,26.47,142.82,142.81,0.12549]
[1723766646671,26.47,142.82,142.81,0.25098]
[1723766646854,26.47,142.82,142.81,0.37647]
[1723766647262,26.47,142.82,142.81,0.50196]
[1723766649766,26.47,142.84,142.81,0.50196]
[1723766649987,7.32047828,142.87,142.83,20.12549]
[1723766650186,33.79047828,142.87,142.85,0.12549]
[1723766652293,33.79047828,142.87,142.85,45.12549]
[1723766652491,33.79047828,142.87,142.86,0.37647]
[1723766652670,40.78977828,142.87,142.86,0.50196]
[1723766653167,33.79047828,142.87,142.86,0.50196]
[1723766654058,33.79047828,142.87,142.86,20.50196]
[1723766655098,33.79047828,142.87,142.86,0.50196]
[1723766655472,33.79047828,142.87,142.82,40.0]
[1723766655671,26.47,142.85,142.82,40.0]
[1723766656698,26.47,142.85,142.83,0.37647]
[1723766656993,33.79047828,142.87,142.85,0.12549]
[1723766657191,33.79047828,142.87,142.85,0.50196]
[1723766657500,33.79047828,142.87,142.86,20.0]
[1723766657668,7.32047828,142.87,142.86,20.50196]
[1723766657863,40.78977828,142.87,142.86,0.25098]
[1723766659994,40.78977828,142.87,142.85,0.25098]
[1723766660198,40.78977828,142.87,142.86,0.25098]
[1723766660368,40.78977828,142.87,142.86,0.50196]
[1723766663403,40.78977828,142.87,142.86,0.37647]
[1723766663597,33.79047828,142.87,142.83,0.12549]
[1723766663793,26.47,142.84,142.8,20.0]
[1723766663979,33.79047828,142.87,142.8,20.0]
[1723766663980,26.47,142.82,142.8,20.0]
[1723766665387,26.47,142.82,142.81,0.12549]
[1723766665776,26.47,142.82,142.81,0.50196]
[1723766666195,33.4709,142.84,142.82,20.0]
[1723766666393,33.4709,142.84,142.83,0.50196]
[1723766666905,26.47,142.84,142.83,0.50196]
[1723766669789,33.4708,142.84,142.83,0.50196]
[1723766670310,33.4708,142.84,142.78,20.0]
[1723766670311,7.0023,142.81,142.78,20.0]
[1723766670514,33.4723,142.81,142.76,44.5159]
[1723766670696,17.5025,142.84,142.75,15.5195]
[1723766670697,26.47,142.79,142.75,15.5195]
[1723766670890,7.0039,142.78,142.74,20.0]
[1723766671309,7.0039,142.78,142.74,40.0]
[1723766671693,33.4733,142.79,142.74,47.0056]
[1723766671917,33.4733,142.79,142.74,27.0056]
[1723766673307,33.4733,142.79,142.75,0.25098]
[1723766673824,33.4733,142.79,142.76,20.25098]
[1723766674008,33.4733,142.79,142.77,0.25098]
[1723766674326,33.4733,142.79,142.78,0.37647]
[1723766674627,26.47,142.79,142.78,0.37647]
[1723766674833,26.47,142.79,142.78,0.50196]
[1723766675330,33.4732,142.79,142.78,0.50196]
[1723766675924,26.47,142.79,142.75,0.12549]
[1723766676095,26.47,142.76,142.75,0.12549]
[1723766676294,26.47,142.76,142.75,20.12549]
[1723766676814,7.0033,142.79,142.75,20.12549]
[1723766676815,26.47,142.78,142.77,0.12549]
[1723766677898,26.47,142.78,142.77,0.25098]
[1723766678102,26.47,142.78,142.77,0.50196]
[1723766679410,26.47,142.8,142.79,0.12549]
[1723766679595,26.47,142.8,142.79,0.37647]
[1723766679799,26.47,142.8,142.79,0.50196]
[1723766681737,7.32302131,142.82,142.79,20.50196]
[1723766681930,26.47,142.81,142.79,0.50196]
[1723766683719,26.47,142.81,142.79,45.50196]
[1723766685446,14.32522131,142.82,142.79,0.50196]
[1723766685611,26.47,142.8,142.79,0.50196]
[1723766686258,26.47,142.8,142.76,20.0]
[1723766686457,26.47,142.78,142.76,20.0]
[1723766687660,26.47,142.78,142.77,0.25098]
[1723766688343,26.47,142.78,142.77,0.50196]
[1723766689961,33.4737,142.78,142.77,0.50196]
[1723766690336,33.4737,142.78,142.77,0.25098]
[1723766690764,26.47,142.78,142.7,20.0]
[1723766690951,16.1022,142.79,142.68,20.0]
[1723766690952,26.47,142.71,142.68,20.0]
[1723766691151,18.01313566,142.77,142.66,20.0]
[1723766691152,26.47,142.69,142.66,20.0]
[1723766691362,7.0087,142.68,142.64,20.0]
[1723766691557,26.47,142.65,142.64,20.0]
[1723766691749,22.4203,142.72,142.62,20.0]
[1723766691750,7.0097,142.66,142.62,20.0]
[1723766691939,10.59,142.63,142.62,20.0]
[1723766692353,7.0102,142.65,142.62,20.0]
[1723766692568,17.5212,142.69,142.62,20.0]
[1723766692569,10.59,142.63,142.62,20.0]
[1723766693676,35.52833566,142.75,142.62,20.0]
[1723766693677,35.0263,142.75,142.65,20.0]
[1723766693866,26.45,142.69,142.65,37.525]
[1723766694047,26.45,142.69,142.66,45.50196]
[1723766694251,26.45,142.69,142.66,0.50196]
[1723766694751,26.45,142.69,142.67,20.0]
[1723766694954,26.45,142.69,142.68,0.50196]
[1723766696350,7.0095,142.67,142.62,64.5399]
[1723766696546,26.45,142.65,142.62,37.5284]
[1723766697256,26.45,142.65,142.62,20.0]
[1723766697979,26.45,142.65,142.63,0.12549]
[1723766698649,26.45,142.65,142.63,0.37647]
[1723766698849,26.45,142.65,142.63,0.50196]
[1723766699574,33.4602,142.65,142.62,20.0]
[1723766699783,26.45,142.63,142.6,20.0]
[1723766701468,26.45,142.63,142.6,40.0]
[1723766701675,33.4593,142.67,142.64,20.0]
[1723766701871,33.4593,142.67,142.65,0.12549]
[1723766702071,33.4593,142.67,142.65,0.37647]
[1723766702471,7.32426456,142.68,142.66,0.12549]
[1723766702684,7.32426456,142.68,142.67,0.12549]
[1723766702865,7.32426456,142.68,142.67,0.37647]
[1723766703072,7.32426456,142.68,142.67,0.50196]
[1723766703571,14.33286456,142.68,142.67,0.50196]
[1723766703796,7.0086,142.68,142.67,0.12549]
[1723766703993,7.0086,142.68,142.6,17.5308]
[1723766703994,26.95203566,142.68,142.6,17.5308]
[1723766704173,26.45,142.62,142.59,27.0127]
[1723766704771,26.45,142.64,142.61,20.0]
[1723766704973,26.45,142.64,142.61,21.40223166]
[1723766705369,26.45,142.64,142.62,0.12549]
[1723766705872,26.45,142.64,142.62,0.25098]
[1723766706072,26.45,142.64,142.63,0.25098]
[1723766706268,26.45,142.64,142.63,0.50196]
[1723766707497,33.4606,142.64,142.63,0.50196]
[1723766707789,33.4606,142.64,142.63,0.37647]
[1723766708879,7.0111,142.63,142.6,0.12549]
[1723766709074,33.96373566,142.62,142.59,20.0]
[1723766709276,33.96373566,142.62,142.57,27.0139]
[1723766709474,33.96373566,142.62,142.59,20.0]
[1723766709676,33.4617,142.62,142.59,20.0]
[1723766710072,6.2602,142.64,142.56,37.5357]
[1723766710073,33.4626,142.6,142.56,37.5357]
[1723766710293,6.2602,142.64,142.54,20.0]
[1723766710294,26.45,142.58,142.54,20.0]
[1723766710796,26.45,142.58,142.56,20.0]
[1723766711377,33.4627,142.6,142.56,20.0]
[1723766711588,6.2602,142.64,142.58,20.0]
[1723766711589,26.45,142.62,142.58,20.0]
[1723766711772,33.4616,142.62,142.59,0.50196]
[1723766713677,26.45,142.62,142.59,0.50196]
[1723766713891,33.11,142.61,142.59,0.50196]
[1723766714102,33.11,142.61,142.59,0.25098]
[1723766714278,40.1224,142.61,142.59,0.12549]
[1723766714813,7.0131,142.59,142.56,20.0]
[1723766714974,7.0147,142.56,142.52,20.0]
[1723766715173,7.0147,142.56,142.51,24.5588]
[1723766715174,33.11,142.55,142.51,24.5588]
[1723766715370,33.11,142.55,142.52,20.0]
[1723766716002,33.11,142.55,142.52,27.0165]
[1723766716215,33.11,142.55,142.52,20.0]
[1723766716416,33.11,142.55,142.53,0.25098]
[1723766716598,40.1242,142.57,142.53,0.25098]
[1723766716916,40.1242,142.57,142.55,0.12549]
[1723766717133,40.1242,142.57,142.55,0.25098]
[1723766717299,33.11,142.57,142.55,0.25098]
[1723766717625,15.0904,142.58,142.57,0.12549]
[1723766717828,7.0137,142.58,142.57,0.37647]
[1723766718126,7.0126,142.6,142.57,0.50196]
[1723766718698,47.44651808,142.63,142.59,0.12549]
[1723766718903,40.43511808,142.63,142.61,0.12549]
[1723766719100,47.44661808,142.63,142.61,0.37647]
[1723766719298,7.0116,142.62,142.61,0.12549]
[1723766719606,14.33621808,142.63,142.61,0.12549]
[1723766719833,47.44621808,142.63,142.61,0.25098]
[1723766720020,7.0116,142.62,142.61,0.12549]
[1723766720793,7.0116,142.62,142.61,0.25098]
[1723766723848,7.0116,142.62,142.61,0.37647]
[1723766724511,7.32511808,142.63,142.62,40.12549]
[1723766724716,33.11,142.66,142.62,0.50196]
[1723766724918,33.11,142.64,142.62,0.25098]
[1723766725134,33.11,142.64,142.62,0.12549]
[1723766725135,7.0111,142.63,142.62,0.12549]
[1723766725416,7.0112,142.63,142.61,0.37647]
[1723766726461,40.1207,142.64,142.61,0.37647]
[1723766726640,33.11,142.64,142.62,0.12549]
[1723766726958,7.0111,142.63,142.62,0.12549]
[1723766727327,33.11,142.64,142.62,0.12549]
[1723766727534,7.0111,142.63,142.62,0.12549]
[1723766728080,7.0116,142.62,142.61,0.12549]
[1723766728367,7.0127,142.6,142.56,20.0]
[1723766728866,7.0127,142.6,142.56,40.0]
[1723766729445,7.0127,142.6,142.58,20.0]
[1723766729842,40.1217,142.62,142.59,0.12549]
[1723766730054,40.1217,142.62,142.59,0.50196]
[1723766730354,7.0121,142.61,142.59,0.50196]
[1723766732374,33.11,142.62,142.6,20.0]
[1723766732578,40.43480998,142.66,142.63,0.12549]
[1723766732760,7.32480998,142.66,142.65,0.12549]
[1723766733078,7.32480998,142.66,142.65,0.37647]
[1723766734190,14.33440998,142.66,142.65,0.37647]
[1723766734345,47.44440998,142.66,142.65,0.12549]
[1723766734552,7.0106,142.65,142.63,0.12549]
[1723766734866,7.0106,142.64,142.63,0.37647]
[1723766736062,7.0106,142.64,142.63,0.50196]
[1723766736374,40.43480998,142.66,142.63,0.50196]
[1723766736565,7.0103,142.65,142.64,20.12549]
[1723766736748,14.33440998,142.66,142.65,0.12549]
[1723766736946,14.33440998,142.66,142.65,0.25098]
[1723766737180,14.33440998,142.66,142.65,0.37647]
[1723766737551,7.32480998,142.66,142.65,0.37647]
[1723766737762,7.32480998,142.66,142.65,0.50196]
[1723766737983,7.0088,142.68,142.67,20.0]
[1723766738184,7.0088,142.68,142.67,20.50196]
[1723766738385,7.0088,142.68,142.67,0.37647]
[1723766740555,30.46092471,142.72,142.68,20.12549]
[1723766740760,30.46092471,142.72,142.7,0.12549]
[1723766741175,7.0072,142.71,142.7,0.12549]
[1723766742761,7.0072,142.71,142.7,20.12549]
[1723766742963,14.33002471,142.72,142.7,20.50196]
[1723766743255,14.33002471,142.72,142.71,0.12549]
[1723766744192,14.33002471,142.72,142.69,0.25098]
[1723766744193,7.32302471,142.72,142.69,0.25098]
[1723766744386,26.44,142.7,142.69,0.25098]
[1723766744584,33.4477,142.7,142.69,0.37647]
[1723766745364,7.0073,142.71,142.7,20.0]
[1723766745697,7.0073,142.71,142.7,20.50196]
[1723766746291,7.0073,142.71,142.7,0.50196]
[1723766747817,7.0073,142.71,142.7,20.50196]
[1723766750198,7.0073,142.71,142.7,0.50196]
[1723766750597,7.0073,142.71,142.7,20.50196]
[1723766752594,7.32302471,142.72,142.71,0.12549]
[1723766752907,21.3165,142.8,142.76,20.0]
[1723766753083,21.3165,142.8,142.79,0.12549]
[1723766753084,7.0029,142.8,142.79,0.12549]
[1723766753289,7.0024,142.81,142.79,0.50196]
[1723766753889,26.44,142.83,142.81,0.12549]
[1723766753890,7.0019,142.82,142.81,0.12549]
[1723766754090,7.0019,142.82,142.81,0.37647]
[1723766755520,7.3214661,142.83,142.81,0.37647]
[1723766755821,7.0018,142.82,142.81,0.25098]
[1723766756319,7.0018,142.82,142.81,0.12549]
[1723766756499,7.0023,142.81,142.8,0.12549]
[1723766756689,7.0023,142.81,142.74,58.8532]
[1723766756690,7.0031,142.8,142.79,0.12549]
[1723766756893,7.0031,142.8,142.74,20.0]
[1723766756894,66.0,142.8,142.74,20.0]
[1723766757093,40.0056,142.75,142.72,20.0]
[1723766757317,7.0057,142.74,142.72,20.0]
[1723766757518,40.0052,142.75,142.72,20.0]
[1723766757823,7.0078,142.7,142.68,20.0]
[1723766758012,7.0081,142.69,142.68,20.0]
[1723766758217,40.0081,142.69,142.66,20.0]
[1723766759221,33.0,142.69,142.68,20.0]
[1723766759524,7.0078,142.7,142.69,0.12549]
[1723766759696,7.0078,142.7,142.69,0.25098]
[1723766759896,7.0078,142.7,142.69,0.37647]
[1723766760499,33.50203566,142.71,142.64,20.0]
[1723766760802,17.5174,142.72,142.66,20.0]
[1723766760803,7.0087,142.68,142.66,20.0]
[1723766761437,40.0083,142.69,142.66,20.0]
[1723766762132,40.0083,142.69,142.68,0.12549]
[1723766762500,33.0,142.69,142.68,0.12549]
[1723766762708,33.0,142.71,142.7,0.12549]
[1723766763032,40.0072,142.71,142.7,0.12549]
[1723766763200,7.0081,142.7,142.68,0.12549]
[1723766763400,33.0,142.69,142.68,0.12549]
[1723766764031,40.0081,142.69,142.68,0.12549]
[1723766765820,33.0,142.71,142.7,0.12549]
[1723766766008,33.0,142.71,142.7,0.37647]
[1723766766409,40.0075,142.71,142.7,0.37647]
[1723766769937,40.0075,142.71,142.7,0.25098]
[1723766770139,7.0079,142.7,142.67,20.12549]
[1723766770305,7.0082,142.69,142.68,0.37647]
[1723766770506,7.0082,142.69,142.68,0.50196]
[1723766770940,7.0078,142.7,142.68,0.50196]
[1723766771282,33.0,142.69,142.65,20.0]
[1723766771403,40.0096,142.66,142.63,20.0]
[1723766771602,40.0096,142.66,142.65,20.0]
[1723766771833,7.0093,142.67,142.65,20.0]
[1723766772249,7.32790324,142.72,142.59,35.0638]
[1723766772250,17.5288,142.63,142.59,20.0]
[1723766772565,33.0,142.67,142.64,20.0]
[1723766772741,40.0095,142.67,142.64,20.0]
[1723766773210,7.0097,142.66,142.64,20.0]
[1723766773540,33.0,142.65,142.62,20.0]
[1723766773844,33.0,142.65,142.63,0.12549]
[1723766774818,33.0,142.65,142.63,0.25098]
[1723766775015,7.0107,142.64,142.6,20.0]
[1723766775241,7.0107,142.64,142.63,20.0]
[1723766775429,33.0,142.65,142.61,20.12549]
[1723766775739,7.33023757,142.67,142.57,20.0]
[1723766775740,33.0,142.62,142.57,20.0]
[1723766776043,33.0,142.6,142.57,20.0]
[1723766776371,33.0,142.6,142.55,20.0]
[1723766776569,33.0,142.6,142.53,20.0]
[1723766776570,7.0137,142.58,142.57,20.0]
[1723766777077,7.0131,142.59,142.57,20.0]
[1723766778257,7.0131,142.59,142.58,0.25098]
[1723766778564,7.0131,142.59,142.58,0.50196]
[1723766778774,33.0,142.6,142.53,20.0]
[1723766778986,7.0164,142.53,142.51,20.0]
[1723766779142,33.0,142.53,142.51,20.0]
[1723766779336,7.0161,142.53,142.51,40.0]
[1723766779533,7.0161,142.53,142.51,20.0]
[1723766780151,7.0156,142.54,142.53,20.0]
[1723766780346,40.0151,142.55,142.53,20.0]
[1723766780549,40.0151,142.55,142.54,0.12549]
[1723766780750,40.0151,142.55,142.54,0.37647]
[1723766780945,33.0,142.57,142.55,20.12549]
[1723766781160,33.0,142.59,142.56,0.37647]
[1723766781371,7.0141,142.57,142.56,0.37647]
[1723766781768,7.0141,142.57,142.56,0.50196]
[1723766782464,33.0,142.59,142.56,0.50196]
[1723766783570,7.014,142.57,142.56,0.50196]
[1723766784684,33.0,142.61,142.59,20.0]
[1723766784895,7.33225629,142.6,142.59,20.12549]
[1723766785176,7.0111,142.63,142.62,0.12549]
[1723766785347,7.0119,142.62,142.61,0.50196]
[1723766789450,40.0112,142.63,142.62,20.12549]
[1723766789766,7.0112,142.63,142.62,20.50196]
[1723766790479,7.0112,142.63,142.62,20.37647]
[1723766790871,7.0112,142.63,142.62,20.50196]
[1723766792192,30.25147182,142.66,142.65,0.12549]
[1723766792193,7.33087182,142.66,142.65,0.12549]
[1723766792361,7.33087182,142.66,142.65,0.37647]
[1723766792792,47.34047182,142.66,142.65,0.37647]
[1723766792983,7.0111,142.63,142.62,20.0]
[1723766793158,33.0,142.63,142.58,20.0]
[1723766793473,40.0126,142.6,142.58,20.0]
[1723766794771,40.0126,142.6,142.59,0.12549]
[1723766795409,40.0126,142.6,142.59,0.50196]
[1723766795695,7.014,142.57,142.56,20.0]
[1723766796018,7.0149,142.56,142.54,20.0]
[1723766796184,33.0,142.55,142.52,20.0]
[1723766796495,33.0,142.53,142.52,20.0]
[1723766796876,33.0,142.55,142.54,20.0]
[1723766797370,33.0,142.55,142.54,20.12549]
[1723766797570,33.0,142.55,142.54,20.50196]
[1723766798567,7.0145,142.56,142.55,0.12549]
[1723766798768,7.0145,142.56,142.55,0.50196]
[1723766799659,7.0126,142.6,142.59,0.12549]
[1723766799887,7.014,142.57,142.56,20.0]
[1723766800078,40.014,142.57,142.56,20.12549]
[1723766801891,40.014,142.57,142.56,20.25098]
[1723766803885,40.014,142.57,142.56,0.12549]
[1723766804062,7.0156,142.54,142.52,20.0]
[1723766804267,40.016,142.53,142.5,20.0]
[1723766804583,33.0,142.53,142.5,20.0]
[1723766804779,33.0,142.51,142.5,20.0]
[1723766805004,33.0,142.51,142.48,20.0]
[1723766805207,33.0,142.52,142.48,20.0]
[1723766805208,33.0,142.49,142.48,20.0]
[1723766806083,33.0,142.51,142.5,20.0]
[1723766806289,33.0,142.53,142.52,20.12549]
[1723766806511,40.0164,142.53,142.52,20.12549]
[1723766806822,33.0,142.53,142.52,20.12549]
[1723766807127,33.0,142.53,142.52,20.37647]
[1723766807302,40.016,142.53,142.52,20.37647]
[1723766807620,40.016,142.53,142.52,20.50196]
[1723766807827,22.5828,142.55,142.54,20.12549]
[1723766807828,40.0152,142.55,142.54,20.12549]
[1723766807988,33.0,142.55,142.54,20.50196]
[1723766808495,40.015,142.55,142.54,0.50196]
[1723766810619,33.0,142.55,142.54,20.50196]
[1723766810821,40.015,142.55,142.54,20.50196]
[1723766811327,40.015,142.55,142.54,0.25098]
[1723766811539,40.015,142.55,142.53,0.25098]
[1723766811540,7.0156,142.54,142.53,0.25098]
[1723766813612,40.0152,142.55,142.53,0.25098]
[1723766815312,7.0155,142.54,142.53,0.25098]
[1723766816044,33.5255,142.54,142.53,0.25098]
[1723766816417,7.0164,142.53,142.5,20.0]
[1723766816631,7.017,142.51,142.5,20.0]
[1723766816934,33.527,142.51,142.48,20.0]
[1723766817241,26.51,142.49,142.48,20.0]
[1723766818044,40.1671,142.51,142.48,20.0]
[1723766818222,40.1671,142.51,142.49,0.50196]
[1723766818546,40.1663,142.53,142.51,0.12549]
[1723766818749,40.1663,142.53,142.52,20.12549]
[1723766818750,33.15,142.53,142.52,20.12549]
[1723766818918,33.15,142.53,142.52,20.37647]
[1723766819111,33.15,142.53,142.52,20.50196]
[1723766819937,33.15,142.55,142.54,20.12549]
[1723766820145,33.15,142.55,142.54,20.50196]
[1723766821945,33.15,142.55,142.54,27.51746]
[1723766822253,33.15,142.55,142.54,20.50196]
[1723766823532,7.3352336,142.58,142.57,0.12549]
[1723766823739,40.4852336,142.58,142.57,0.25098]
[1723766824242,47.4991336,142.58,142.57,0.12549]
[1723766824541,7.3352336,142.58,142.55,0.12549]
[1723766824846,7.3352336,142.58,142.56,20.12549]
[1723766824847,33.15,142.57,142.56,20.12549]
[1723766825017,7.3352336,142.58,142.57,0.12549]
[1723766825234,7.3352336,142.58,142.57,8.91874174]
[1723766825442,33.15,142.61,142.6,20.12549]
[1723766825749,33.15,142.63,142.61,0.12549]
[1723766825950,33.15,142.63,142.61,0.50196]
[1723766826255,7.0116,142.62,142.61,0.50196]
[1723766826441,7.0116,142.62,142.61,0.12549]
[1723766827525,40.1612,142.63,142.61,0.25098]
[1723766827721,33.15,142.63,142.61,0.25098]
[1723766828438,33.15,142.63,142.62,20.12549]
[1723766828639,33.15,142.63,142.62,20.50196]
[1723766831137,40.1611,142.63,142.62,0.12549]
[1723766831329,33.15,142.63,142.58,20.0]
[1723766831534,33.15,142.59,142.58,20.0]
[1723766831861,7.012,142.62,142.6,20.0]
[1723766832152,7.33056177,142.64,142.6,20.0]
[1723766832153,33.15,142.61,142.6,20.0]
[1723766832368,40.1626,142.61,142.58,20.0]
[1723766832540,33.15,142.59,142.58,20.0]
[1723766832740,33.15,142.59,142.57,20.0]
[1723766833248,40.1631,142.59,142.57,20.0]
[1723766833836,66.3,142.59,142.55,20.0]
[1723766834160,33.15,142.56,142.55,20.0]
[1723766835861,33.15,142.56,142.55,20.37647]
[1723766836555,33.15,142.56,142.55,20.50196]
[1723766836939,7.0137,142.58,142.57,20.0]
[1723766837164,33.15,142.59,142.57,20.50196]
[1723766837462,40.1631,142.59,142.57,20.50196]
[1723766837964,40.1631,142.59,142.58,0.12549]
[1723766839946,33.5131,142.59,142.57,20.37647]
[1723766841539,33.5131,142.59,142.58,0.12549]
[1723766841746,33.5131,142.59,142.58,0.37647]
[1723766842261,33.5131,142.59,142.58,0.25098]
[1723766842755,33.5131,142.59,142.58,0.12549]
[1723766842962,7.0136,142.58,142.57,20.0]
[1723766843267,7.0136,142.58,142.57,20.37647]
[1723766844965,7.0136,142.58,142.57,20.50196]
[1723766845347,7.0136,142.58,142.57,0.37647]
[1723766845547,7.0136,142.58,142.55,20.0]
[1723766845859,7.014,142.57,142.56,0.50196]
[1723766846949,7.0137,142.58,142.57,20.0]
[1723766847262,7.0137,142.58,142.57,20.50196]
[1723766847979,7.33332573,142.6,142.59,20.12549]
[1723766848275,7.33332573,142.6,142.59,20.50196]
[1723766848463,26.5,142.6,142.59,20.50196]
[1723766852246,33.5126,142.6,142.59,20.50196]
[1723766857071,7.0134,142.59,142.57,20.0]
[1723766857386,26.5,142.58,142.57,20.0]
[1723766858378,26.5,142.58,142.57,20.12549]
[1723766858578,26.5,142.58,142.57,20.50196]
[1723766859384,33.5136,142.58,142.57,20.50196]
[1723766859683,26.5,142.58,142.57,20.50196]
[1723766859876,7.3336846,142.62,142.57,20.50196]
[1723766859877,26.5,142.6,142.59,20.0]
[1723766860061,7.3336846,142.62,142.59,20.25098]
[1723766860062,7.0118,142.62,142.59,20.25098]
[1723766860267,7.0126,142.6,142.59,0.50196]
[1723766860452,7.0126,142.6,142.59,0.25098]
[1723766860875,7.0131,142.59,142.58,0.25098]
[1723766861054,33.5131,142.59,142.58,0.37647]
[1723766861252,7.0131,142.59,142.58,0.12549]
[1723766861498,33.5131,142.59,142.58,0.12549]
[1723766862706,7.0126,142.6,142.58,0.50196]
[1723766862896,33.5126,142.6,142.58,0.50196]
[1723766863278,7.0131,142.59,142.58,0.50196]
[1723766865182,33.5127,142.6,142.58,0.50196]
[1723766866600,7.0131,142.59,142.58,0.50196]
[1723766867204,17.5282,142.63,142.58,0.50196]
[1723766867205,17.5282,142.63,142.6,0.12549]
[1723766867511,33.5122,142.61,142.6,0.37647]
[1723766870108,33.5122,142.61,142.6,0.25098]
[1723766870407,26.5,142.61,142.58,0.25098]
[1723766870605,26.5,142.59,142.58,0.25098]
[1723766870810,26.5,142.59,142.58,0.50196]
[1723766871990,33.5131,142.59,142.58,0.50196]
[1723766875799,26.5,142.59,142.58,0.50196]
[1723766877215,6.5409,142.56,142.5,20.0]
[1723766877390,26.5,142.51,142.5,20.0]
[1723766877589,15.6677,142.58,142.54,20.0]
[1723766877904,30.0,142.55,142.54,20.0]
[1723766878224,7.0138,142.58,142.56,20.0]
[1723766878796,7.014,142.57,142.56,20.12549]
[1723766879417,7.014,142.57,142.56,20.50196]
[1723766880796,26.5,142.59,142.56,20.50196]
[1723766880797,7.0136,142.58,142.56,20.50196]
[1723766880999,7.3332732,142.6,142.59,0.12549]
[1723766881239,26.5,142.61,142.59,0.37647]
[1723766881523,33.8322632,142.61,142.59,0.37647]
[1723766881699,7.3322632,142.61,142.6,20.25098]
[1723766881902,41.85833945,142.69,142.67,20.0]
[1723766882231,7.0077,142.7,142.69,20.12549]
[1723766882232,7.0081,142.7,142.69,20.12549]
[1723766882393,48.85144289,142.72,142.7,0.12549]
[1723766882594,7.0067,142.72,142.7,0.37647]
[1723766882911,7.0072,142.71,142.7,0.50196]
[1723766883292,26.5,142.71,142.63,20.0]
[1723766883533,26.5,142.73,142.63,20.0]
[1723766883534,7.0102,142.65,142.63,20.0]
[1723766883832,33.5106,142.64,142.63,20.0]
[1723766884825,33.5106,142.64,142.63,20.12549]
[1723766885030,33.5106,142.64,142.63,20.50196]
[1723766885325,13.80356579,142.67,142.6,20.0]
[1723766885503,26.5,142.64,142.6,20.0]
[1723766885690,7.0112,142.63,142.6,20.0]
[1723766885893,7.0117,142.62,142.6,20.0]
[1723766886294,7.0121,142.61,142.6,20.0]
[1723766887722,7.0121,142.61,142.6,20.25098]
[1723766888098,7.0121,142.61,142.6,20.50196]
[1723766891298,33.5121,142.61,142.6,20.50196]
[1723766892520,31.32736579,142.67,142.6,20.50196]
[1723766892521,7.0117,142.62,142.6,20.50196]
[1723766892815,33.5117,142.62,142.61,0.50196]
[1723766893308,31.32736579,142.67,142.63,20.0]
[1723766893619,7.0101,142.65,142.64,0.12549]
[1723766894221,31.32736579,142.67,142.65,20.0]
[1723766894222,7.0097,142.66,142.65,20.0]
[1723766894428,33.5097,142.66,142.65,20.37647]